[Event "FIDE World Rapid-ch Open 2018"]
[White "Hirneise, Jens"]
[Black "Vastrukhin, Oleg"]
[Site "St. Petersburg"]
[Round "11.81"]
[Annotator "ChessBase"]
[Result "0-1"]
[Date "2018.12.28"]
[WhiteElo "2371"]
[BlackElo "2413"]
[PlyCount "130"]
[TimeControl "900+10"]

1. e4 {[%emt 0:0:0]} e6 {[%emt 0:0:0]} 2. d4 {[%emt 0:0:0]} d5 {[%emt 0:0:0]} 3. Nc3 {[%emt 0:0:0]} Bb4 {[%emt 0:0:0]} 4. e5 {[%emt 0:0:0]} c5 {[%emt 0:0:0]} 5. a3 {[%emt 0:0:0]} Bxc3+ {[%emt 0:0:0]} 6. bxc3 {[%emt 0:0:0]
} Nc6 {[%emt 0:0:0]} 7. Nf3 {[%emt 0:0:0]} Bd7 {[%emt 0:0:0]} 8. Bd3 {[%emt 0:0:15]} Qa5 {[%emt 0:0:3]} 9. Bd2 {[%emt 0:0:8]} c4 {[%emt 0:0:2]
} 10. Be2 {[%emt 0:0:2]} 0-0-0 {[%emt 0:0:2]} 11. 0-0 {[%emt 0:0:55]
} f5 {[%emt 0:0:15]} 12. Ng5 {[%emt 0:1:0]} Nh6 {[%emt 0:0:0]} 13. f4 {[%emt 0:0:21]} Rdg8 {[%emt 0:0:38]} 14. Rf3 {[%emt 0:0:29]} Nd8 {[%emt 0:0:3]} 15. Qb1 {[%emt 0:0:46]} Nhf7 {[%emt 0:0:16]} 16. Nxf7 {[%emt 0:1:39]
} Nxf7 {[%emt 0:0:3]} 17. Qb4 {[%emt 0:0:29]} Qxb4 {[%emt 0:0:0]} 18. cxb4 {[%emt 0:0:5]} Ba4 {[%emt 0:0:4]} 19. Bd1 {[%emt 0:0:18]} h6 {[%emt 0:0:42]} 20. c3 {[%emt 0:0:15]} Bxd1 {[%emt 0:0:7]} 21. Rxd1 {[%emt 0:0:1]
} g5 {[%emt 0:0:12]} 22. a4 {[%emt 0:0:39]} Kd7 {[%emt 0:0:44]
} 23. Rdf1 {[%emt 0:0:22]} gxf4 {[%emt 0:0:39]} 24. Bxf4 {[%emt 0:0:1]} Rg6 {[%emt 0:0:55]} 25. Rh3 {[%emt 0:0:16]} Rhg8 {[%emt 0:0:44]} 26. Rf2 {[%emt 0:0:5]
} Ke8 {[%emt 0:0:13]} 27. Kf1 {[%emt 0:0:9]} Kf8 {[%emt 0:0:0]} 28. Re3 {[%emt 0:1:18]} Kg7 {[%emt 0:0:13]} 29. Rff3 {[%emt 0:0:31]} Kh7 {[%emt 0:0:10]} 30. Re2 {[%emt 0:0:41]} R8g7 {[%emt 0:0:26]} 31. Ref2 {[%emt 0:0:13]
} Rg4 {[%emt 0:0:42]} 32. h3 {[%emt 0:2:57]} R4g6 {[%emt 0:0:0]} 33. Kg1 {[%emt 0:0:22]} Rg8 {[%emt 0:1:6]} 34. Kh2 {[%emt 0:0:3]} R6g7 {[%emt 0:0:16]} 35. Kg1 {[%emt 0:0:28]} Nh8 {[%emt 0:0:33]} 36. Kh2 {[%emt 0:0:26]
} Ng6 {[%emt 0:0:13]} 37. Bg3 {[%emt 0:1:40]} h5 {[%emt 0:0:0]} 38. Kh1 {[%emt 0:0:25]} Kh6 {[%emt 0:0:10]} 39. Bf4+ {[%emt 0:1:17]} Nxf4 {[%emt 0:1:57]} 40. Rxf4 {[%emt 0:0:1]} Rg3 {[%emt 0:0:3]} 41. R4f3 {[%emt 0:0:2]
} h4 {[%emt 0:0:17]} 42. Kg1 {[%emt 0:0:3]} Kg5 {[%emt 0:0:0]} 43. Kf1 {[%emt 0:2:28]} Rxf3 {[%emt 0:0:6]} 44. Rxf3 {[%emt 0:0:2]} f4 {[%emt 0:0:1]} 45. Kf2 {[%emt 0:1:1]} Kf5 {[%emt 0:0:3]} 46. Kf1 {[%emt 0:0:1]
} Ke4 {[%emt 0:0:1]} 47. Kf2 {[%emt 0:0:14]} Rc8 {[%emt 0:0:0]} 48. Ke2 {[%emt 0:0:11]} Rc7 {[%emt 0:0:23]} 49. Ke1 {[%emt 0:0:19]} Rc6 {[%emt 0:0:7]} 50. a5 {[%emt 0:0:10]} Ra6 {[%emt 0:0:17]} 51. Rf2 {[%emt 0:0:0]} b6 {[%emt 0:0:4]} 52. Ra2 {[%emt 0:0:6]} bxa5 {[%emt 0:0:26]} 53. b5 {[%emt 0:0:16]} Rb6 {[%emt 0:0:1]} 54. Rxa5 {[%emt 0:0:2]} Kd3 {[%emt 0:0:2]
} 55. Rxa7 {[%emt 0:0:13]} Kxc3 {[%emt 0:0:4]} 56. Ra6 {[%emt 0:0:3]
} Rxb5 {[%emt 0:0:5]} 57. Rxe6 {[%emt 0:0:2]} Kxd4 {[%emt 0:0:0]} 58. Rh6 {[%emt 0:0:11]} Kxe5 {[%emt 0:0:5]} 59. Rxh4 {[%emt 0:0:2]
} Rb1+ {[%emt 0:0:3]} 60. Ke2 {[%emt 0:0:9]} d4 {[%emt 0:0:2]} 61. Rh8 {[%emt 0:0:4]
} d3+ {[%emt 0:0:5]} 62. Kd2 {[%emt 0:0:9]} Rb2+ {[%emt 0:0:0]} 63. Kc3 {[%emt 0:0:4]} Rc2+ {[%emt 0:0:1]} 64. Kb4 {[%emt 0:0:2]} d2 {[%emt 0:0:3]} 65. Rd8 {[%emt 0:0:1]} c3 {[%emt 0:0:1]} 0-1

[Event "FIDE World Rapid-ch Open 2018"]
[White "Drygalov, Andrey"]
[Black "Makoveev, Ilya"]
[Site "St. Petersburg"]
[Round "11.82"]
[Annotator "ChessBase"]
[Result "1/2-1/2"]
[Date "2018.12.28"]
[WhiteElo "2481"]
[BlackElo "2257"]
[PlyCount "92"]
[TimeControl "900+10"]

1. c4 {[%emt 0:0:0]} e5 {[%emt 0:0:1]} 2. Nc3 {[%emt 0:0:0]} Nf6 {[%emt 0:0:2]
} 3. g3 {[%emt 0:0:8]} d5 {[%emt 0:0:10]} 4. cxd5 {[%emt 0:0:0]} Nxd5 {[%emt 0:0:2]} 5. Bg2 {[%emt 0:0:7]} Nb6 {[%emt 0:0:3]} 6. e3 {[%emt 0:1:43]
} Nc6 {[%emt 0:0:59]} 7. Nge2 {[%emt 0:0:2]} Be7 {[%emt 0:0:0]} 8. 0-0 {[%emt 0:0:3]} 0-0 {[%emt 0:0:7]} 9. f4 {[%emt 0:0:1]} Bf5 {[%emt 0:4:0]
} 10. fxe5 {[%emt 0:4:38]} Bd3 {[%emt 0:0:4]} 11. b3 {[%emt 0:0:0]} Qd7 {[%emt 0:2:1]} 12. Bb2 {[%emt 0:1:30]} Nxe5 {[%emt 0:1:6]} 13. Rf4 {[%emt 0:2:8]} c5 {[%emt 0:0:54]} 14. Nc1 {[%emt 0:1:20]} Bg6 {[%emt 0:0:0]} 15. Ne4 {[%emt 0:1:17]} Nc6 {[%emt 0:0:41]} 16. Rf2 {[%emt 0:1:43]} f5 {[%emt 0:1:12]} 17. Nc3 {[%emt 0:0:3]} Ne5 {[%emt 0:0:7]} 18. h3 {[%emt 0:1:9]
} Rad8 {[%emt 0:0:21]} 19. N3e2 {[%emt 0:0:15]} Bf6 {[%emt 0:0:0]} 20. d4 {[%emt 0:0:46]} Nc6 {[%emt 0:0:18]} 21. Nd3 {[%emt 0:0:30]} cxd4 {[%emt 0:0:36]} 22. Bxc6 {[%emt 0:0:5]} bxc6 {[%emt 0:0:17]} 23. Bxd4 {[%emt 0:0:13]} Nd5 {[%emt 0:0:24]} 24. Qc1 {[%emt 0:0:5]} Rfe8 {[%emt 0:0:0]} 25. Ndf4 {[%emt 0:0:18]} Bxd4 {[%emt 0:0:21]} 26. exd4 {[%emt 0:0:0]} Nf6 {[%emt 0:0:13]} 27. Nxg6 {[%emt 0:0:11]} hxg6 {[%emt 0:0:1]} 28. Qc4+ {[%emt 0:0:5]} Kh7 {[%emt 0:0:14]} 29. Raf1 {[%emt 0:0:18]} Re4 {[%emt 0:0:12]
} 30. Rf4 {[%emt 0:0:6]} Rde8 {[%emt 0:0:7]} 31. Rxe4 {[%emt 0:0:11]
} Rxe4 {[%emt 0:0:2]} 32. Rf4 {[%emt 0:0:2]} Qe7 {[%emt 0:0:0]} 33. Rxe4 {[%emt 0:0:19]} Qxe4 {[%emt 0:0:3]} 34. Kf2 {[%emt 0:0:6]} Qh1 {[%emt 0:0:14]} 35. Ke3 {[%emt 0:0:8]} Nd5+ {[%emt 0:0:24]} 36. Kd2 {[%emt 0:0:1]
} Nf6 {[%emt 0:0:5]} 37. h4 {[%emt 0:0:28]} Qg2 {[%emt 0:0:0]} 38. Kc1 {[%emt 0:0:14]} Qf3 {[%emt 0:0:17]} 39. a4 {[%emt 0:0:7]} Ne4 {[%emt 0:0:6]} 40. a5 {[%emt 0:0:2]} Qe3+ {[%emt 0:0:12]} 41. Kb2 {[%emt 0:0:11]
} g5 {[%emt 0:0:14]} 42. hxg5 {[%emt 0:0:5]} Nxg5 {[%emt 0:0:0]} 43. a6 {[%emt 0:0:23]} Ne4 {[%emt 0:0:7]} 44. Qc2 {[%emt 0:0:2]} g6 {[%emt 0:0:12]
} 45. Ka3 {[%emt 0:0:6]} Nd2 {[%emt 0:0:6]} 46. Nf4 {[%emt 0:0:0]} Qxd4 {[%emt 0:0:21]} 1/2-1/2

[Event "FIDE World Rapid-ch Open 2018"]
[White "Makarov, Marat"]
[Black "Tsoi, Dmitry"]
[Site "St. Petersburg"]
[Round "11.83"]
[Annotator "ChessBase"]
[Result "1-0"]
[Date "2018.12.28"]
[WhiteElo "2505"]
[BlackElo "2424"]
[PlyCount "120"]
[TimeControl "900+10"]

1. Nf3 {[%emt 0:0:0]} f5 {[%emt 0:0:0]} 2. g3 {[%emt 0:0:19]} Nf6 {[%emt 0:0:0]
} 3. Bg2 {[%emt 0:0:1]} e6 {[%emt 0:0:0]} 4. 0-0 {[%emt 0:0:0]} d5 {[%emt 0:0:0]} 5. c4 {[%emt 0:0:3]} c6 {[%emt 0:0:2]} 6. d3 {[%emt 0:0:24]
} Be7 {[%emt 0:0:17]} 7. b3 {[%emt 0:0:20]} 0-0 {[%emt 0:0:6]
} 8. Bb2 {[%emt 0:0:1]} a5 {[%emt 0:0:21]} 9. Nbd2 {[%emt 0:0:2]} Nbd7 {[%emt 0:0:16]
} 10. a3 {[%emt 0:2:16]} Nc5 {[%emt 0:1:11]} 11. b4 {[%emt 0:0:0]} axb4 {[%emt 0:0:3]} 12. axb4 {[%emt 0:0:1]} Rxa1 {[%emt 0:0:1]} 13. Qxa1 {[%emt 0:1:25]} Na6 {[%emt 0:0:4]} 14. b5 {[%emt 0:0:1]} cxb5 {[%emt 0:0:1]
} 15. cxd5 {[%emt 0:0:2]} exd5 {[%emt 0:0:23]} 16. Nd4 {[%emt 0:4:36]
} Nc7 {[%emt 0:0:7]} 17. Qa5 {[%emt 0:0:17]} Bd7 {[%emt 0:0:0]} 18. Rc1 {[%emt 0:1:50]} Ne6 {[%emt 0:1:37]} 19. Qxd8 {[%emt 0:0:8]} Nxd8 {[%emt 0:0:2]} 20. N2b3 {[%emt 0:0:9]} g6 {[%emt 0:2:29]} 21. e3 {[%emt 0:0:6]
} Kf7 {[%emt 0:0:59]} 22. Ne2 {[%emt 0:0:2]} Bc6 {[%emt 0:0:0]} 23. Nf4 {[%emt 0:0:58]} Ne6 {[%emt 0:0:18]} 24. Nd4 {[%emt 0:3:1]} Nxd4 {[%emt 0:0:21]} 25. Bxd4 {[%emt 0:0:2]} Rd8 {[%emt 0:1:1]} 26. Ra1 {[%emt 0:0:41]
} Ne8 {[%emt 0:1:1]} 27. Kf1 {[%emt 0:0:7]} Bg5 {[%emt 0:0:0]} 28. Ne2 {[%emt 0:0:5]} Be7 {[%emt 0:0:18]} 29. Ke1 {[%emt 0:0:4]} Ng7 {[%emt 0:0:18]} 30. Bb6 {[%emt 0:0:43]} Rd7 {[%emt 0:0:12]} 31. Kd2 {[%emt 0:0:35]
} Ne6 {[%emt 0:0:19]} 32. d4 {[%emt 0:0:16]} Bd8 {[%emt 0:0:0]} 33. Bxd8 {[%emt 0:0:7]} Rxd8 {[%emt 0:0:2]} 34. Nc1 {[%emt 0:0:1]} Nc7 {[%emt 0:0:46]} 35. Nd3 {[%emt 0:0:7]} Ne8 {[%emt 0:0:5]} 36. Ra7 {[%emt 0:0:40]
} Nd6 {[%emt 0:0:20]} 37. Nb4 {[%emt 0:0:16]} Ke6 {[%emt 0:0:0]} 38. Nd3 {[%emt 0:0:20]} g5 {[%emt 0:0:34]} 39. Kc3 {[%emt 0:0:19]} Ne4+ {[%emt 0:0:22]} 40. Kb4 {[%emt 0:0:3]} Kd6 {[%emt 0:0:5]} 41. Ra2 {[%emt 0:0:9]
} Kc7 {[%emt 0:0:9]} 42. Ne5 {[%emt 0:0:6]} Rf8 {[%emt 0:0:0]} 43. f3 {[%emt 0:0:1]} Nd6 {[%emt 0:0:20]} 44. Bf1 {[%emt 0:0:32]} f4 {[%emt 0:0:11]
} 45. exf4 {[%emt 0:0:4]} gxf4 {[%emt 0:0:1]} 46. g4 {[%emt 0:0:1]
} Kb6 {[%emt 0:0:9]} 47. Bd3 {[%emt 0:0:2]} h6 {[%emt 0:0:0]} 48. h4 {[%emt 0:0:1]} Nc4 {[%emt 0:0:7]} 49. g5 {[%emt 0:0:10]} hxg5 {[%emt 0:0:7]} 50. hxg5 {[%emt 0:0:1]} Nxe5 {[%emt 0:0:7]} 51. dxe5 {[%emt 0:0:1]
} d4 {[%emt 0:0:0]} 52. e6 {[%emt 0:0:12]} Re8 {[%emt 0:0:26]
} 53. Bf5 {[%emt 0:0:9]} Bd5 {[%emt 0:0:7]} 54. Re2 {[%emt 0:0:12]} Kc6 {[%emt 0:0:14]
} 55. g6 {[%emt 0:0:3]} d3 {[%emt 0:0:26]} 56. Bxd3 {[%emt 0:0:0]} Rxe6 {[%emt 0:0:5]} 57. Rxe6+ {[%emt 0:0:28]} Bxe6 {[%emt 0:0:1]} 58. g7 {[%emt 0:0:2]} Kd5 {[%emt 0:0:8]} 59. Bxb5 {[%emt 0:0:17]} Kd4 {[%emt 0:0:6]
} 60. Ba4 {[%emt 0:0:11]} Kd5 1-0

[Event "FIDE World Rapid-ch Open 2018"]
[White "Iljiushenok, Ilia"]
[Black "Ovchinnikov, Vsevolod"]
[Site "St. Petersburg"]
[Round "11.84"]
[Annotator "ChessBase"]
[Result "1/2-1/2"]
[Date "2018.12.28"]
[WhiteElo "2533"]
[BlackElo "2329"]
[PlyCount "73"]
[TimeControl "900+10"]

1. c4 {[%emt 0:0:0]} Nf6 {[%emt 0:0:0]} 2. Nc3 {[%emt 0:0:0]} d5 {[%emt 0:0:0]
} 3. cxd5 {[%emt 0:0:0]} Nxd5 {[%emt 0:0:1]} 4. g3 {[%emt 0:0:0]} Nb6 {[%emt 0:0:2]} 5. Bg2 {[%emt 0:0:9]} g6 {[%emt 0:0:1]} 6. Nf3 {[%emt 0:0:22]} Bg7 {[%emt 0:0:2]} 7. d3 {[%emt 0:0:22]} Nc6 {[%emt 0:0:0]} 8. Be3 {[%emt 0:1:28]} 0-0 {[%emt 0:2:41]} 9. Qd2 {[%emt 0:0:41]} e5 {[%emt 0:1:30]
} 10. Bh6 {[%emt 0:0:56]} Bxh6 {[%emt 0:3:0]} 11. Qxh6 {[%emt 0:0:2]
} f6 {[%emt 0:0:2]} 12. Qd2 {[%emt 0:1:11]} Be6 {[%emt 0:0:0]} 13. h4 {[%emt 0:0:30]} Qe7 {[%emt 0:0:55]} 14. 0-0 {[%emt 0:2:43]} Rad8 {[%emt 0:0:17]} 15. Rac1 {[%emt 0:3:39]} Nc4 {[%emt 0:1:51]} 16. Qc2 {[%emt 0:0:9]
} Nd6 {[%emt 0:0:2]} 17. a3 {[%emt 0:0:34]} Qf7 {[%emt 0:0:0]} 18. e3 {[%emt 0:0:13]} Rd7 {[%emt 0:0:58]} 19. b4 {[%emt 0:0:26]} a6 {[%emt 0:0:2]
} 20. Qe2 {[%emt 0:0:25]} Ne7 {[%emt 0:0:42]} 21. Rfe1 {[%emt 0:0:36]
} Nd5 {[%emt 0:0:33]} 22. Na4 {[%emt 0:0:19]} b6 {[%emt 0:0:0]} 23. e4 {[%emt 0:0:34]} Ne7 {[%emt 0:0:4]} 24. d4 {[%emt 0:0:1]} Bc4 {[%emt 0:0:4]
} 25. Qe3 {[%emt 0:0:34]} Nc6 {[%emt 0:0:24]} 26. d5 {[%emt 0:0:0]} Na7 {[%emt 0:0:9]} 27. Nb2 {[%emt 0:0:20]} Ba2 {[%emt 0:0:14]} 28. Nd2 {[%emt 0:1:17]} Nab5 {[%emt 0:0:2]} 29. Ra1 {[%emt 0:0:13]} Nd4 {[%emt 0:0:1]
} 30. Rec1 {[%emt 0:0:16]} Nxe4 {[%emt 0:0:26]} 31. Nxe4 {[%emt 0:0:27]
} Bxd5 {[%emt 0:0:3]} 32. Rc3 {[%emt 0:0:25]} Re8 {[%emt 0:0:0]} 33. Rac1 {[%emt 0:0:22]} Qe7 {[%emt 0:0:10]} 34. Rxc7 {[%emt 0:0:16]} Rxc7 {[%emt 0:0:11]} 35. Rxc7 {[%emt 0:0:2]} Qxc7 {[%emt 0:0:11]} 36. Nxf6+ {[%emt 0:0:2]} Kf8 {[%emt 0:0:11]} 37. Qh6+ {[%emt 0:0:15]} 1/2-1/2

[Event "FIDE World Rapid-ch Open 2018"]
[White "Hakobyan, Aram"]
[Black "Drygalov, Sergey"]
[Site "St. Petersburg"]
[Round "11.85"]
[Annotator "ChessBase"]
[Result "1-0"]
[Date "2018.12.28"]
[WhiteElo "2545"]
[BlackElo "2446"]
[PlyCount "61"]
[TimeControl "900+10"]

1. Nf3 {[%emt 0:0:0]} Nf6 {[%emt 0:0:3]} 2. c4 {[%emt 0:0:0]} e6 {[%emt 0:0:18]
} 3. g3 {[%emt 0:0:2]} d5 {[%emt 0:0:16]} 4. Bg2 {[%emt 0:0:0]} dxc4 {[%emt 0:0:50]} 5. Qa4+ {[%emt 0:0:8]} Bd7 {[%emt 0:0:29]} 6. Qxc4 {[%emt 0:0:6]} c5 {[%emt 0:0:3]} 7. 0-0 {[%emt 0:0:44]} Nc6 {[%emt 0:0:0]} 8. Rd1 {[%emt 0:0:54]} Rc8 {[%emt 0:1:7]} 9. Nc3 {[%emt 0:1:27]} a6 {[%emt 0:0:4]} 10. Qf4 {[%emt 0:0:59]} Qb6 {[%emt 0:3:11]} 11. b3 {[%emt 0:0:0]} Be7 {[%emt 0:0:38]} 12. Bb2 {[%emt 0:0:4]} 0-0 {[%emt 0:0:44]} 13. Rac1 {[%emt 0:0:26]} Rfd8 {[%emt 0:2:30]} 14. Na4 {[%emt 0:1:45]} Qa7 {[%emt 0:1:2]
} 15. Bxf6 {[%emt 0:0:27]} gxf6 {[%emt 0:0:2]} 16. Qg4+ {[%emt 0:0:12]
} Kh8 {[%emt 0:0:5]} 17. Qh5 {[%emt 0:0:2]} Be8 {[%emt 0:0:0]} 18. Qh6 {[%emt 0:0:32]} Nd4 {[%emt 0:2:9]} 19. Nxd4 {[%emt 0:1:21]} Rxd4 {[%emt 0:0:13]} 20. e3 {[%emt 0:1:59]} Rg4 {[%emt 0:0:16]} 21. d4 {[%emt 0:0:3]
} Rg6 {[%emt 0:1:7]} 22. Qh4 {[%emt 0:0:35]} c4 {[%emt 0:0:0]} 23. d5 {[%emt 0:0:20]} b5 {[%emt 0:0:3]} 24. d6 {[%emt 0:1:2]} Bd8 {[%emt 0:0:20]
} 25. Nc3 {[%emt 0:0:32]} f5 {[%emt 0:0:5]} 26. Qh5 {[%emt 0:0:0]} b4 {[%emt 0:0:15]} 27. Ne2 {[%emt 0:0:1]} c3 {[%emt 0:0:2]} 28. Nf4 {[%emt 0:0:2]} Rg7 {[%emt 0:0:10]} 29. Nxe6 {[%emt 0:0:10]} Rg6 {[%emt 0:0:31]
} 30. Nf8 {[%emt 0:0:34]} Kg7 {[%emt 0:0:8]} 31. d7 {[%emt 0:0:0]} 1-0

[Event "FIDE World Rapid-ch Open 2018"]
[White "Shinkevich, Vitaly"]
[Black "Bilguun, Sumiya"]
[Site "St. Petersburg"]
[Round "11.86"]
[Annotator "ChessBase"]
[Result "0-1"]
[Date "2018.12.28"]
[WhiteElo "2439"]
[BlackElo "2497"]
[PlyCount "98"]
[TimeControl "900+10"]

1. Nf3 {[%emt 0:2:51]} d5 {[%emt 0:0:0]} 2. c4 {[%emt 0:0:2]} e6 {[%emt 0:0:0]} 3. g3 {[%emt 0:0:1]} Nf6 {[%emt 0:0:1]} 4. Bg2 {[%emt 0:0:1]} dxc4 {[%emt 0:0:2]} 5. 0-0 {[%emt 0:0:4]} Be7 {[%emt 0:0:6]} 6. Qc2 {[%emt 0:0:13]
} a6 {[%emt 0:1:46]} 7. a4 {[%emt 0:0:12]} 0-0 {[%emt 0:2:5]} 8. Ne5 {[%emt 0:0:38]} a5 {[%emt 0:1:20]} 9. Na3 {[%emt 0:0:41]} Na6 {[%emt 0:0:5]
} 10. Naxc4 {[%emt 0:0:6]} Nb4 {[%emt 0:0:9]} 11. Qb3 {[%emt 0:0:4]
} Nd7 {[%emt 0:1:37]} 12. d3 {[%emt 0:1:18]} Nxe5 {[%emt 0:0:0]} 13. Nxe5 {[%emt 0:0:2]} Bf6 {[%emt 0:0:5]} 14. Nc4 {[%emt 0:0:24]} Nd5 {[%emt 0:1:29]} 15. Bd2 {[%emt 0:0:24]} c6 {[%emt 0:0:35]} 16. e4 {[%emt 0:0:50]
} Nb4 {[%emt 0:0:18]} 17. Rad1 {[%emt 0:5:21]} Be7 {[%emt 0:0:0]} 18. Be3 Ra6 19. d4 {[%emt 0:0:47]} b5 {[%emt 0:0:3]} 20. Ne5 {[%emt 0:0:0]} f6 {[%emt 0:1:3]} 21. Nf3 {[%emt 0:0:40]} Kh8 {[%emt 0:0:4]} 22. Rc1 {[%emt 0:0:29]} Bd7 {[%emt 0:0:1]} 23. Rfd1 {[%emt 0:0:42]} Qe8 {[%emt 0:0:35]
} 24. Bf1 {[%emt 0:2:0]} Ra8 {[%emt 0:0:2]} 25. axb5 {[%emt 0:0:32]
} cxb5 {[%emt 0:0:6]} 26. Bf4 {[%emt 0:0:5]} a4 {[%emt 0:0:0]} 27. Qe3 {[%emt 0:0:2]} Rc8 {[%emt 0:0:2]} 28. Rxc8 {[%emt 0:0:11]} Qxc8 {[%emt 0:0:10]} 29. Rc1 {[%emt 0:0:3]} Qa8 {[%emt 0:0:36]} 30. Rc7 {[%emt 0:0:10]
} Qd8 {[%emt 0:1:15]} 31. Rc1 {[%emt 0:0:41]} Qa8 {[%emt 0:0:0]} 32. Rc7 {[%emt 0:0:3]} Qd8 {[%emt 0:0:16]} 33. Qc3 {[%emt 0:0:26]} h6 {[%emt 0:0:51]} 34. h4 {[%emt 0:0:5]} Kh7 {[%emt 0:0:34]} 35. h5 {[%emt 0:0:0]} Qe8 {[%emt 0:0:21]} 36. g4 {[%emt 0:0:9]} e5 {[%emt 0:0:9]} 37. dxe5 {[%emt 0:0:15]} Bxg4 {[%emt 0:0:3]} 38. exf6 {[%emt 0:0:20]} Bxf6 {[%emt 0:0:5]
} 39. e5 {[%emt 0:0:2]} Be7 {[%emt 0:0:21]} 40. Bxh6 {[%emt 0:0:0]} Rxf3 {[%emt 0:0:15]} 41. Qd4 {[%emt 0:0:1]} Bxh5 {[%emt 0:0:6]} 42. Be3 {[%emt 0:0:22]} Qg6+ {[%emt 0:0:7]} 43. Bg2 {[%emt 0:0:1]} Rf7 {[%emt 0:0:4]
} 44. Kh2 {[%emt 0:0:8]} Bg4 {[%emt 0:0:26]} 45. f4 {[%emt 0:0:0]} Bf8 {[%emt 0:0:12]} 46. Rxf7 {[%emt 0:0:9]} Qxf7 {[%emt 0:0:3]} 47. Bd2 {[%emt 0:0:6]} Nc2 {[%emt 0:0:18]} 48. Be4+ {[%emt 0:0:13]} Bf5 {[%emt 0:0:1]
} 49. Kg3 {[%emt 0:0:12]} Nxd4 {[%emt 0:0:1]} 0-1

[Event "FIDE World Rapid-ch Open 2018"]
[White "Rechlis, Gad"]
[Black "Lobanov, Sergei"]
[Site "St. Petersburg"]
[Round "11.87"]
[Annotator "ChessBase"]
[Result "1-0"]
[Date "2018.12.28"]
[WhiteElo "2521"]
[BlackElo "2526"]
[PlyCount "49"]
[TimeControl "900+10"]

1. e4 {[%emt 0:1:17]} c5 {[%emt 0:0:10]} 2. Nc3 {[%emt 0:0:27]} Nc6 {[%emt 0:0:3]
} 3. Nf3 {[%emt 0:0:9]} e5 {[%emt 0:0:18]} 4. Bc4 {[%emt 0:0:0]} d6 {[%emt 0:0:52]} 5. d3 {[%emt 0:0:9]} Be7 {[%emt 0:0:10]} 6. Nd2 {[%emt 0:0:7]
} Nf6 {[%emt 0:0:20]} 7. Nf1 {[%emt 0:0:2]} a6 {[%emt 0:0:50]
} 8. a4 {[%emt 0:0:14]} 0-0 {[%emt 0:0:2]} 9. Ne3 {[%emt 0:0:2]} Nd4 {[%emt 0:0:28]
} 10. 0-0 {[%emt 0:0:13]} Rb8 {[%emt 0:0:32]} 11. a5 {[%emt 0:0:0]} Be6 {[%emt 0:1:13]} 12. Bd2 {[%emt 0:3:19]} Qd7 {[%emt 0:2:24]} 13. Ncd5 {[%emt 0:0:48]} Bd8 {[%emt 0:0:18]} 14. f4 {[%emt 0:0:59]} exf4 {[%emt 0:2:17]
} 15. Rxf4 {[%emt 0:1:17]} Ne8 {[%emt 0:0:2]} 16. c3 {[%emt 0:0:0]} Nc6 {[%emt 0:0:2]} 17. Qh5 {[%emt 0:0:1]} Nxa5 {[%emt 0:1:46]} 18. Rxa5 {[%emt 0:0:2]} Bxa5 {[%emt 0:0:3]} 19. Rh4 {[%emt 0:0:30]} h6 {[%emt 0:0:12]
} 20. Nf5 {[%emt 0:0:1]} Bd8 {[%emt 0:3:13]} 21. Bxh6 {[%emt 0:1:45]
} Bxh4 {[%emt 0:2:14]} 22. Bxg7 {[%emt 0:0:34]} Nxg7 {[%emt 0:0:0]} 23. Qxh4 {[%emt 0:0:30]} Bxd5 {[%emt 0:0:38]} 24. Nh6+ {[%emt 0:0:0]} Kh7 {[%emt 0:0:2]} 25. Ng4+ {[%emt 0:0:2]} 1-0

[Event "FIDE World Rapid-ch Open 2018"]
[White "Apryshko, Gleb"]
[Black "Reshetnikov, Alexey"]
[Site "St. Petersburg"]
[Round "11.88"]
[Annotator "ChessBase"]
[Result "0-1"]
[Date "2018.12.28"]
[WhiteElo "2385"]
[BlackElo "2492"]
[PlyCount "74"]
[TimeControl "900+10"]

1. e4 {[%emt 0:2:15]} e5 {[%emt 0:0:0]} 2. Nf3 {[%emt 0:0:2]} Nc6 {[%emt 0:0:0]
} 3. Nc3 {[%emt 0:0:5]} Nf6 {[%emt 0:0:8]} 4. a3 {[%emt 0:0:0]} d6 {[%emt 0:1:10]} 5. d4 {[%emt 0:0:27]} exd4 {[%emt 0:0:17]} 6. Nxd4 {[%emt 0:0:2]
} Be7 {[%emt 0:0:40]} 7. Nde2 {[%emt 0:0:3]} 0-0 {[%emt 0:0:0]} 8. g3 {[%emt 0:0:1]} Bg4 {[%emt 0:1:35]} 9. Bg2 {[%emt 0:0:1]} Ne5 {[%emt 0:0:3]
} 10. f4 {[%emt 0:0:1]} Nc6 {[%emt 0:1:48]} 11. h3 {[%emt 0:0:0]} Bd7 {[%emt 0:0:22]} 12. Be3 {[%emt 0:0:37]} Re8 {[%emt 0:0:3]} 13. Qd3 {[%emt 0:1:56]} Be6 {[%emt 0:2:13]} 14. 0-0-0 {[%emt 0:2:21]} Nd7 {[%emt 0:0:11]
} 15. Nd5 {[%emt 0:0:16]} Bf8 {[%emt 0:0:23]} 16. Rhe1 {[%emt 0:3:4]
} Nb6 {[%emt 0:0:39]} 17. Nec3 {[%emt 0:0:11]} g6 18. Nb5 Rc8 {[%emt 0:4:25]
} 19. Bd2 {[%emt 0:0:1]} Bg7 {[%emt 0:0:58]} 20. Bc3 {[%emt 0:0:0]} f6 {[%emt 0:1:24]} 21. b3 {[%emt 0:2:11]} Nd7 {[%emt 0:0:2]} 22. Bb2 {[%emt 0:0:0]} a6 {[%emt 0:0:20]} 23. Nbc3 {[%emt 0:0:2]} Nc5 {[%emt 0:0:7]
} 24. Qd2 {[%emt 0:0:10]} b5 {[%emt 0:0:46]} 25. Qf2 {[%emt 0:0:0]} Bf7 {[%emt 0:0:14]} 26. g4 {[%emt 0:1:43]} Rb8 {[%emt 0:0:4]} 27. Qh4 {[%emt 0:0:15]} b4 {[%emt 0:0:36]} 28. axb4 {[%emt 0:0:1]} Nxb4 {[%emt 0:0:1]
} 29. Qf2 {[%emt 0:1:30]} a5 {[%emt 0:0:19]} 30. Qd4 {[%emt 0:0:0]} Nc6 {[%emt 0:0:8]} 31. Qc4 {[%emt 0:0:9]} a4 {[%emt 0:0:21]} 32. Nxa4 {[%emt 0:0:10]} Na5 {[%emt 0:0:22]} 33. Qd4 {[%emt 0:0:10]} Naxb3+ {[%emt 0:0:7]
} 34. cxb3 {[%emt 0:0:4]} Nxb3+ {[%emt 0:0:1]} 35. Kc2 {[%emt 0:0:12]
} Nxd4+ 36. Rxd4 c6 {[%emt 0:0:5]} 37. Ndc3 {[%emt 0:0:21]} Qa5 {[%emt 0:0:6]} 0-1

[Event "FIDE World Rapid-ch Open 2018"]
[White "Mamatov, Melis"]
[Black "Vaisser, Anatoli"]
[Site "St. Petersburg"]
[Round "11.89"]
[Annotator "ChessBase"]
[Result "0-1"]
[Date "2018.12.28"]
[WhiteElo "2223"]
[BlackElo "2505"]
[PlyCount "78"]
[TimeControl "900+10"]

1. e4 {[%emt 0:0:0]} e6 {[%emt 0:0:0]} 2. d4 {[%emt 0:0:0]} d5 {[%emt 0:0:0]} 3. Nd2 {[%emt 0:0:0]} c5 {[%emt 0:0:0]} 4. Ngf3 {[%emt 0:0:5]} Nc6 {[%emt 0:0:2]} 5. exd5 {[%emt 0:0:5]} exd5 {[%emt 0:0:5]} 6. Bb5 {[%emt 0:0:15]
} cxd4 {[%emt 0:0:5]} 7. 0-0 {[%emt 0:0:18]} Bd6 {[%emt 0:0:0]} 8. Nb3 {[%emt 0:0:19]} Nge7 {[%emt 0:0:4]} 9. Bg5 {[%emt 0:0:54]} 0-0 {[%emt 0:0:13]} 10. Nbxd4 {[%emt 0:0:16]} Qb6 {[%emt 0:1:11]} 11. Bd3 {[%emt 0:5:52]
} Ng6 {[%emt 0:3:35]} 12. Nf5 {[%emt 0:1:37]} Bc5 {[%emt 0:0:0]} 13. Rb1 {[%emt 0:0:39]} Re8 {[%emt 0:1:37]} 14. c3 {[%emt 0:0:45]} a5 {[%emt 0:1:13]
} 15. Be3 {[%emt 0:0:36]} Bxf5 {[%emt 0:0:35]} 16. Bxc5 {[%emt 0:0:5]
} Qxc5 {[%emt 0:0:3]} 17. Bxf5 {[%emt 0:0:1]} Rad8 {[%emt 0:0:0]} 18. Nd4 {[%emt 0:1:29]} Nxd4 {[%emt 0:0:3]} 19. cxd4 {[%emt 0:0:1]
} Qb6 {[%emt 0:0:27]} 20. Qd2 {[%emt 0:0:29]} Ne7 {[%emt 0:0:9]} 21. Bc2 {[%emt 0:0:25]
} Nc6 {[%emt 0:0:24]} 22. Ba4 {[%emt 0:0:56]} Re4 {[%emt 0:0:0]} 23. Bxc6 {[%emt 0:1:41]} Rxd4 {[%emt 0:0:3]} 24. Qe3 {[%emt 0:0:34]} bxc6 {[%emt 0:0:5]} 25. Rbc1 {[%emt 0:0:11]} c5 {[%emt 0:2:7]} 26. Rc2 {[%emt 0:0:1]
} h6 {[%emt 0:1:25]} 27. Rfc1 {[%emt 0:0:39]} Rb8 {[%emt 0:0:0]} 28. h3 {[%emt 0:0:31]} c4 {[%emt 0:0:7]} 29. Qe5 {[%emt 0:0:49]} Rd8 {[%emt 0:0:47]
} 30. Qe3 {[%emt 0:0:11]} Qf6 {[%emt 0:0:22]} 31. b3 {[%emt 0:0:0]} Rd3 {[%emt 0:0:21]} 32. Qc5 {[%emt 0:0:10]} cxb3 33. axb3 Rxb3 {[%emt 0:0:49]
} 34. Qxa5 {[%emt 0:0:13]} d4 {[%emt 0:0:18]} 35. Rc6 {[%emt 0:0:0]} Qe7 {[%emt 0:0:23]} 36. Rc8 {[%emt 0:0:4]} Rxc8 {[%emt 0:0:11]} 37. Rxc8+ {[%emt 0:0:2]} Kh7 {[%emt 0:0:1]} 38. Rd8 {[%emt 0:0:26]} Qf6 {[%emt 0:0:29]
} 39. Rd5 {[%emt 0:0:13]} Rb1+ {[%emt 0:0:10]} 0-1